fUSD/lending_fUSD_20260510
["ID","MTS","AMOUNT","RATE_DAILY","PERIOD"]
[421990704,1778420964000,-314.83667614,0.0001299,2]
[421990705,1778420981000,5300.0,0.00040995,120]
[421990722,1778421031000,-500.0,0.00013994,2]
[421990729,1778421031000,-682.92375215,0.00014289,2]
[421990725,1778421031000,-500.0,0.00013994,2]
[421990724,1778421031000,-500.0,0.00013994,2]
[421990726,1778421031000,-250.0,0.00014,2]
[421990723,1778421031000,-500.0,0.00013994,2]
[421990721,1778421031000,-231.65784525,0.00013994,2]
[421990720,1778421031000,-500.0,0.00013994,2]
[421990717,1778421031000,-300.0,0.00013794,2]
[421990716,1778421031000,-1200.0,0.00013794,2]
[421990718,1778421031000,-152027.4959,0.00013795,2]
[421990714,1778421031000,-518.76742744,0.0001375,2]
[421990715,1778421031000,-1356.45881621,0.0001375,2]
[421990713,1778421031000,-38.92332386,0.00013514,2]
[421990712,1778421031000,-337.95667614,0.00013514,2]
[421990711,1778421031000,-62.04332386,0.0001299,2]
[421990719,1778421031000,-150.0,0.00013894,2]
[421990727,1778421031000,-376.88,0.00014039,2]
[421990733,1778421031000,-150.0,0.00015006,2]
[421990731,1778421031000,-300.0,0.00014289,2]
[421990728,1778421031000,-357.2508661,0.00014289,2]
[421990748,1778421031000,-433.0,0.00016242,2]
[421990746,1778421031000,-300.0,0.00016,2]
[421990744,1778421031000,-1000.0,0.00015721,2]
[421990747,1778421031000,-376.88,0.00016136,2]
[421990743,1778421031000,-376.88,0.00015612,2]
[421990742,1778421031000,-188640.14045826,0.00015183,2]
[421990741,1778421031000,-52543.39714174,0.00015183,2]
[421990745,1778421031000,-160.0,0.00015892,2]
[421990739,1778421031000,-168.0,0.00015183,2]
[421990737,1778421031000,-500.0,0.00015173,2]
[421990738,1778421031000,-1680.0,0.00015173,2]
[421990735,1778421031000,-376.88,0.00015087,2]
[421990734,1778421031000,-255.0,0.00015019,2]
[421990736,1778421031000,-420.0,0.00015115,2]
[421990732,1778421031000,-376.88,0.00014563,2]
[421990740,1778421031000,-169.21328639,0.00015183,2]
[421990730,1778421031000,-300.26882161,0.00014289,2]
[421990761,1778421032000,-350.0,0.00018,2]
[421990764,1778421032000,-376.88,0.00018233,2]
[421990765,1778421032000,-1522.0,0.0001836,2]
[421990766,1778421032000,-4905.39680931,0.00018745,2]
[421990772,1778421032000,-376.88,0.00019806,2]
[421990768,1778421032000,-300.0,0.00019,2]
[421990770,1778421032000,-1875.22624361,0.00019782,2]
[421990774,1778421032000,-171.0,0.0002,2]
[421990763,1778421032000,-823.0,0.0001815,2]
[421990767,1778421032000,-376.88,0.00018757,2]
[421990762,1778421032000,-165.4447123,0.0001805,2]
[421990753,1778421032000,-376.88,0.0001666,2]
[421990755,1778421032000,-1875.22624361,0.00016766,2]
[421990757,1778421032000,-376.88,0.00017184,2]
[421990758,1778421032000,-245.1657594,0.00017548,2]
[421990759,1778421032000,-71.8342406,0.00017548,2]
[421990756,1778421032000,-2008.5716395,0.00016816,2]
[421990752,1778421032000,-286.95,0.000166,2]
[421990754,1778421032000,-2351.0,0.00016691,2]
[421990751,1778421032000,-587.0,0.00016563,2]
[421990750,1778421032000,-186.916363,0.00016438,2]
[421990749,1778421032000,-1500.0,0.00016268,2]
[421990760,1778421032000,-376.88,0.00017709,2]
[421990769,1778421032000,-376.88,0.00019282,2]
[421990773,1778421032000,-562.0,0.00019888,2]
[421990776,1778421032000,-192.0,0.0002,2]
[421990771,1778421032000,-487.51,0.00019796,2]
[421990798,1778421032000,-591.86802884,0.00020548,2]
[421990799,1778421032000,-378.47607588,0.00020548,2]
[421990795,1778421032000,-717.79063966,0.00020548,2]
[421990796,1778421032000,-618.18534309,0.00020548,2]
[421990797,1778421032000,-237.90148383,0.00020548,2]
[421990793,1778421032000,-3023.96305822,0.00020548,2]
[421990794,1778421032000,-636.65095903,0.00020548,2]
[421990792,1778421032000,-7.90010098,0.00020548,2]
[421990791,1778421032000,-4988.68989902,0.00020548,2]
[421990790,1778421032000,-2989.11010098,0.00020548,2]
[421990788,1778421032000,-487.38503545,0.00020548,2]
[421990789,1778421032000,-546.17890492,0.00020548,2]
[421990785,1778421032000,-376.88,0.0002033,2]
[421990775,1778421032000,-737.0,0.0002,2]
[421990777,1778421032000,-1800.0,0.0002,2]
[421990778,1778421032000,-400.0,0.0002,2]
[421990779,1778421032000,-160.05861465,0.0002,2]
[421990781,1778421032000,-160.05861464,0.0002,2]
[421990782,1778421032000,-1177.0,0.0002,2]
[421990787,1778421032000,-973.91595865,0.00020548,2]
[421990780,1778421032000,-160.05861465,0.0002,2]
[421990783,1778421032000,-1249.56,0.00020178,2]
[421990784,1778421032000,-487.51,0.00020291,2]
[421990786,1778421032000,-500.0,0.00020547,2]
[421990812,1778421037000,-500.0,0.00015182,2]
[421990813,1778421037000,-3788.34441145,0.00020548,2]
[421990816,1778421037000,-4996.59,0.00020548,2]
[421990811,1778421037000,-186.54294223,0.00015182,2]
[421990814,1778421037000,-4996.59,0.00020548,2]
[421990818,1778421037000,-1209.78230937,0.00020548,2]
[421990815,1778421037000,-4996.59,0.00020548,2]
[421990817,1778421037000,-4996.59,0.00020548,2]
[421990823,1778421037000,-4996.59,0.00020548,2]
[421990820,1778421037000,-500.0,0.00015182,2]
[421990822,1778421037000,-3194.91885571,0.00020548,2]
[421990819,1778421037000,-591.88883492,0.00020548,2]
[421990821,1778421037000,-278.15787612,0.00015182,2]
[421990861,1778421038000,-150.15,0.00021898,2]
[421990857,1778421038000,-1445.38,0.00021549,2]
[421990863,1778421038000,-737.0,0.00022,2]
[421990862,1778421038000,-171.0,0.00022,2]
[421990864,1778421038000,-192.0,0.00022,2]
[421990866,1778421038000,-2000.0,0.00022216,2]
[421990865,1778421038000,-371.69,0.00022049,2]
[421990867,1778421038000,-2000.0,0.00022216,2]
[421990869,1778421038000,-585.01,0.00022466,2]
[421990872,1778421038000,-5000.0,0.00022524,2]
[421990873,1778421038000,-200.0,0.00022626,2]
[421990870,1778421038000,-256.56,0.00022466,2]
[421990868,1778421038000,-903.56,0.00022466,2]
[421990871,1778421038000,-180.35,0.0002251,2]
[421990876,1778421038000,-1875.22624361,0.00022798,2]
[421990855,1778421038000,-487.51,0.00021281,2]
[421990874,1778421038000,-2500.0,0.00022764,2]
[421990878,1778421038000,-737.0,0.00023,2]
[421990877,1778421038000,-171.0,0.00023,2]
[421990881,1778421038000,-3010.80235378,0.00023312,2]
[421990882,1778421038000,-1706.25476486,0.0002386,2]
[421990880,1778421038000,-3000.0,0.00023312,2]
[421990883,1778421038000,-171.0,0.00024,2]
[421990884,1778421038000,-737.0,0.00024,2]
[421990885,1778421038000,-192.0,0.00024,2]
[421990886,1778421038000,-511.88,0.0002411,2]
[421990887,1778421038000,-1350.3,0.00024174,2]
[421990875,1778421038000,-2500.0,0.00022764,2]
[421990860,1778421038000,-487.51,0.00021776,2]
[421990834,1778421038000,-4996.59,0.00020548,2]
[421990859,1778421038000,-1500.0,0.00021668,2]
[421990888,1778421038000,-1445.38,0.00024242,2]
[421990825,1778421038000,-4996.59,0.00020548,2]
[421990824,1778421038000,-4996.59,0.00020548,2]
[421990826,1778421038000,-4996.59,0.00020548,2]
[421990830,1778421038000,-4996.59,0.00020548,2]
[421990828,1778421038000,-4996.59,0.00020548,2]
[421990827,1778421038000,-4996.59,0.00020548,2]
[421990829,1778421038000,-4996.59,0.00020548,2]
[421990831,1778421038000,-4996.59,0.00020548,2]
[421990832,1778421038000,-4996.59,0.00020548,2]
[421990833,1778421038000,-4996.59,0.00020548,2]
[421990840,1778421038000,-487.51,0.00020786,2]
[421990838,1778421038000,-500.0,0.00020573,2]
[421990839,1778421038000,-500.0,0.00020573,2]
[421990837,1778421038000,-501.74591922,0.00020573,2]
[421990836,1778421038000,-501.46755329,0.00020573,2]
[421990835,1778421038000,-500.0,0.00020573,2]
[421990843,1778421038000,-192.0,0.00021,2]
[421990842,1778421038000,-737.0,0.00021,2]
[421990841,1778421038000,-171.0,0.00021,2]
[421990844,1778421038000,-1982.0,0.00021,3]
[421990846,1778421038000,-1000.0,0.00021121,2]
[421990845,1778421038000,-1000.0,0.00021121,2]
[421990847,1778421038000,-504.58502161,0.00021121,2]
[421990851,1778421038000,-1470.37,0.00021273,2]
[421990849,1778421038000,-239.12,0.00021273,2]
[421990853,1778421038000,-1250.4,0.00021273,2]
[421990858,1778421038000,-1500.0,0.00021668,2]
[421990890,1778421038000,-195.46,0.00024658,2]
[421990879,1778421038000,-192.0,0.00023,2]
[421990891,1778421038000,-152.09,0.00024658,2]
[421990924,1778421038000,-232.2,0.000255,14]
[421990925,1778421038000,-204.66,0.00025517,7]
[421990932,1778421038000,-1875.22624361,0.00025814,2]
[421990923,1778421038000,-223.07751,0.00025298,14]
[421990933,1778421038000,-1000.0,0.00025821,2]
[421990928,1778421038000,-239.12,0.00025786,2]
[421990927,1778421038000,-150.0,0.00025779,2]
[421990926,1778421038000,-205.4,0.00025517,7]
[421990929,1778421038000,-1470.37,0.00025786,2]
[421990930,1778421038000,-1250.4,0.00025786,2]
[421990931,1778421038000,-1350.3,0.00025786,2]
[421990935,1778421038000,-1000.0,0.00025821,2]
[421990934,1778421038000,-201.21515128,0.00025821,2]
[421990936,1778421038000,-1014.01032063,0.00025821,2]
[421990938,1778421038000,-244.54444,0.00026029,14]
[421990937,1778421038000,-365.63,0.00026027,7]
[421990946,1778421038000,-223.07751,0.00026378,14]
[421990939,1778421038000,-6388.43822063,0.00026059,2]
[421990941,1778421038000,-165.06,0.00026222,2]
[421990940,1778421038000,-262.719738,0.0002616,14]
[421990943,1778421038000,-250.0,0.00026327,2]
[421990942,1778421038000,-152.09,0.00026291,7]
[421990945,1778421038000,-400.06213041,0.00026368,2]
[421990947,1778421038000,-1091.22229098,0.00026401,2]
[421990948,1778421038000,-155.07,0.00026473,7]
[421990949,1778421038000,-1285.43203171,0.00026693,2]
[421990892,1778421038000,-204.66,0.00024658,2]
[421990920,1778421038000,-500.0,0.00025273,2]
[421990922,1778421038000,-503.42120933,0.00025273,2]
[421990944,1778421038000,-1500.0,0.00026368,2]
[421990919,1778421038000,-500.0,0.00025273,2]
[421990921,1778421038000,-500.0,0.00025273,2]
[421990894,1778421038000,-205.4,0.00024658,2]
[421990889,1778421038000,-1000.0,0.00024658,2]
[421990893,1778421038000,-155.07,0.00024658,2]
[421990897,1778421038000,-755.0,0.00025,2]
[421990895,1778421038000,-791.6950489,0.00024678,2]
[421990898,1778421038000,-211.12706642,0.00025,2]
[421990900,1778421038000,-165.06,0.00025183,2]
[421990950,1778421038000,-1285.43203171,0.00026745,2]
[421990899,1778421038000,-882.0,0.00025,2]
[421990901,1778421038000,-1386.346,0.00025233,2]
[421990903,1778421038000,-624.0,0.00025233,2]
[421990902,1778421038000,-452.536,0.00025233,2]
[421990904,1778421038000,-3539.0,0.00025233,2]
[421990896,1778421038000,-186.5438603,0.00025,2]
[421990909,1778421038000,-150.0,0.00025233,2]
[421990905,1778421038000,-1269.0,0.00025233,2]
[421990913,1778421038000,-150.385,0.00025233,2]
[421990914,1778421038000,-150.0,0.00025233,2]
[421990918,1778421038000,-500.0,0.00025273,2]
[421990916,1778421038000,-250.0,0.00025233,2]
[421990917,1778421038000,-165.403,0.00025233,2]
[421990911,1778421038000,-150.295,0.00025233,2]
[421990906,1778421038000,-150.168,0.00025233,2]
[421990912,1778421038000,-3628.0,0.00025233,2]
[421990908,1778421038000,-219.0,0.00025233,2]
[421990915,1778421038000,-929.0,0.00025233,2]
[421990910,1778421038000,-150.0,0.00025233,2]
[421990907,1778421038000,-1225.103,0.00025233,2]
[421990988,1778421039000,-500.0,0.00027397,2]
[421990979,1778421039000,-500.0,0.00027397,2]
[421990982,1778421039000,-500.0,0.00027397,2]
[421990981,1778421039000,-500.0,0.00027397,2]
[421990984,1778421039000,-165.73780089,0.00027397,2]
[421990986,1778421039000,-150.0,0.00027397,2]
[421990987,1778421039000,-500.0,0.00027397,2]
[421990985,1778421039000,-500.0,0.00027397,2]
[421990989,1778421039000,-500.0,0.00027397,2]
[421990983,1778421039000,-500.0,0.00027397,2]
[421990978,1778421039000,-500.0,0.00027397,2]
[421990992,1778421039000,-500.0,0.00027397,2]
[421990991,1778421039000,-500.0,0.00027397,2]
[421990994,1778421039000,-1500.0,0.00027397,2]
[421990993,1778421039000,-387.81225799,0.00027397,2]
[421990997,1778421039000,-1285.43203171,0.00027409,2]
[421990995,1778421039000,-274.51,0.00027397,2]
[421990998,1778421039000,-450.0,0.00027422,5]
[421990996,1778421039000,-6722.08,0.00027397,10]
[421990999,1778421039000,-1285.43203171,0.00027425,2]
[421991000,1778421039000,-1285.43203171,0.00027465,2]
[421990980,1778421039000,-500.0,0.00027397,2]
[421991001,1778421039000,-618.56182426,0.00027497,2]
[421990990,1778421039000,-500.0,0.00027397,2]
[421990975,1778421039000,-500.0,0.00027397,2]
[421990965,1778421039000,-1285.43203171,0.0002716,2]
[421990976,1778421039000,-500.0,0.00027397,2]
[421991003,1778421039000,-1285.43203171,0.0002752,2]
[421990954,1778421039000,-1285.43203171,0.00026845,2]
[421990952,1778421039000,-500.0,0.00026844,2]
[421990951,1778421039000,-1285.43203171,0.00026798,2]
[421990953,1778421039000,-500.0,0.00026844,2]
[421990956,1778421039000,-350.0,0.00026874,2]
[421990958,1778421039000,-1445.38,0.00026936,2]
[421990955,1778421039000,-1285.43203171,0.00026859,2]
[421990957,1778421039000,-285.03778927,0.00026916,2]
[421990959,1778421039000,-180.35,0.00026949,2]
[421990960,1778421039000,-1285.43203171,0.00026955,2]
[421990977,1778421039000,-500.0,0.00027397,2]
[421990961,1778421039000,-1285.43203171,0.00026996,2]
[421990967,1778421039000,-1285.43203171,0.00027237,2]
[421990964,1778421039000,-1285.43203171,0.00027083,2]
[421990966,1778421039000,-1285.43203171,0.00027162,2]
[421990962,1778421039000,-1285.43203171,0.00027032,2]
[421990968,1778421039000,-165.06,0.00027261,2]
[421990969,1778421039000,-2666.19451166,0.00027309,2]
[421990971,1778421039000,-500.0,0.00027396,2]
[421990970,1778421039000,-500.0,0.00027396,2]
[421990973,1778421039000,-500.0,0.00027397,2]
[421990972,1778421039000,-500.0,0.00027396,2]
[421990974,1778421039000,-500.0,0.00027397,2]
[421990963,1778421039000,-1285.43203171,0.0002704,2]
[421991007,1778421039000,-1285.43203171,0.00027653,2]
[421991025,1778421039000,-1269.0,0.00028233,2]
[421991005,1778421039000,-152.68144015,0.00027538,5]
[421991038,1778421039000,-500.0,0.00028873,5]
[421991032,1778421039000,-1285.43203171,0.00028273,2]
[421991033,1778421039000,-155.07,0.00028288,30]
[421991036,1778421039000,-1875.22624361,0.00028831,2]
[421991037,1778421039000,-500.0,0.00028873,5]
[421991040,1778421039000,-500.0,0.00028873,5]
[421991039,1778421039000,-500.0,0.00028873,5]
[421991042,1778421039000,-27562.8146,0.000289,2]
[421991041,1778421039000,-276.3838178,0.00028873,5]
[421991044,1778421039000,-500.0,0.00028973,5]
[421991002,1778421039000,-1285.43203171,0.00027505,2]
[421991034,1778421039000,-165.06,0.000283,2]
[421991046,1778421039000,-94892.12115697,0.00029,2]
[421991049,1778421039000,-1021.88178341,0.00029,2]
[421991050,1778421039000,-1033.56296967,0.00029,2]
[421991047,1778421039000,-993.71667762,0.00029,2]
[421991048,1778421039000,-999.8506,0.00029,2]
[421991051,1778421039000,-3284.10974202,0.00029,2]
[421991053,1778421039000,-293.51592497,0.00029,2]
[421991055,1778421039000,-436.75223375,0.00029,2]
[421991054,1778421039000,-1738.835448,0.00029,2]
[421991056,1778421039000,-500.0,0.00015182,2]
[421991057,1778421039000,-200.57475321,0.00015182,2]
[421991058,1778421039000,-500.0,0.00015182,2]
[421991043,1778421039000,-500.0,0.00028973,5]
[421991035,1778421039000,-717.75632109,0.00028518,5]
[421991045,1778421039000,-500.0,0.00028999,2]
[421991031,1778421039000,-150.0,0.00028233,2]
[421991029,1778421039000,-150.0,0.00028233,2]
[421991006,1778421039000,-371.69,0.00027561,120]
[421991008,1778421039000,-6388.43822059,0.00027707,2]
[421991004,1778421039000,-1285.43203171,0.00027533,2]
[421991009,1778421039000,-1285.43203171,0.00027768,2]
[421991011,1778421039000,-150.61749599,0.00027831,5]
[421991010,1778421039000,-500.0,0.000278,7]
[421991012,1778421039000,-1285.43203171,0.00027902,2]
[421991014,1778421039000,-1285.43203171,0.00027973,2]
[421991016,1778421039000,-212.91,0.00028,2]
[421991015,1778421039000,-214.7734975,0.00028,10]
[421991017,1778421039000,-1285.43203171,0.00028048,2]
[421991013,1778421039000,-550.0,0.0002797,5]
[421991022,1778421039000,-1353.0,0.00028233,2]
[421991021,1778421039000,-1285.43203171,0.00028152,2]
[421991028,1778421039000,-150.0,0.00028233,2]
[421991026,1778421039000,-1222.0,0.00028233,2]
[421991027,1778421039000,-150.0,0.00028233,2]
[421991024,1778421039000,-624.0,0.00028233,2]
[421991030,1778421039000,-150.0,0.00028233,2]
[421991019,1778421039000,-1285.43203171,0.00028085,2]
[421991020,1778421039000,-1285.43203171,0.00028123,2]
[421991018,1778421039000,-1285.43203171,0.0002807,2]
[421991023,1778421039000,-3539.0,0.00028233,2]
[421991072,1778421040000,-6388.43822059,0.00029356,2]
[421991081,1778421040000,-483.08,0.00029508,2]
[421991087,1778421040000,-483.08,0.00029654,2]
[421991084,1778421040000,-483.08,0.00029581,2]
[421991080,1778421040000,-1511.70822645,0.00029452,30]
[421991079,1778421040000,-483.08,0.00029436,2]
[421991078,1778421040000,-715.58246394,0.00029421,5]
[421991077,1778421040000,-502.41572104,0.00029421,5]
[421991076,1778421040000,-711.982935,0.00029421,5]
[421991075,1778421040000,-502.83862869,0.00029421,5]
[421991073,1778421040000,-483.08,0.00029363,2]
[421991074,1778421040000,-2666.19451164,0.00029393,2]
[421991059,1778421040000,-434.68767378,0.00015182,2]
[421991069,1778421040000,-266.94444493,0.00029279,2]
[421991068,1778421040000,-483.08,0.00029218,2]
[421991070,1778421040000,-483.08,0.0002929,2]
[421991066,1778421040000,-483.08,0.00029072,2]
[421991067,1778421040000,-483.08,0.00029145,2]
[421991065,1778421040000,-16629.12,0.00029,7]
[421991064,1778421040000,-41787.95510778,0.00029,2]
[421991062,1778421040000,-50.45088556,0.00015182,2]
[421991063,1778421040000,-89076.53656098,0.00029,2]
[421991061,1778421040000,-200.64767378,0.00015182,2]
[421991060,1778421040000,-65.31232622,0.00015182,2]
[421991089,1778421040000,-195.82,0.00029659,2]
[421991071,1778421040000,-165.06,0.00029339,2]
[421991082,1778421040000,-152.28289942,0.00029521,5]
[421991092,1778421040000,-500.0,0.00029714,5]
[421991083,1778421040000,-1000.0,0.00029521,5]
[421991086,1778421040000,-195.82,0.0002964,2]
[421991113,1778421040000,-338.91583148,0.00030453,2]
[421991111,1778421040000,-483.08,0.00030381,2]
[421991108,1778421040000,-672.24887343,0.00030262,2]
[421991112,1778421040000,-144.16416852,0.00030453,2]
[421991110,1778421040000,-371.69,0.00030318,120]
[421991106,1778421040000,-483.08,0.00030235,2]
[421991107,1778421040000,-407.29204506,0.00030262,5]
[421991105,1778421040000,-483.08,0.00030163,2]
[421991104,1778421040000,-16629.12,0.000301,7]
[421991103,1778421040000,-483.08,0.0003009,2]
[421991102,1778421040000,-483.08,0.00030017,2]
[421991100,1778421040000,-483.08,0.00029945,2]
[421991109,1778421040000,-483.08,0.00030308,2]
[421991101,1778421040000,-150.68,0.0002996,2]
[421991098,1778421040000,-150.68,0.00029852,14]
[421991088,1778421040000,-150.68,0.00029659,14]
[421991085,1778421040000,-1445.38,0.0002963,2]
[421991091,1778421040000,-500.0,0.00029714,2]
[421991090,1778421040000,-500.0,0.00029713,2]
[421991094,1778421040000,-483.08,0.00029726,2]
[421991114,1778421040000,-171.0,0.00030494,30]
[421991093,1778421040000,-489.25018816,0.00029714,5]
[421991099,1778421040000,-483.08,0.00029872,2]
[421991097,1778421040000,-150.68,0.00029823,14]
[421991096,1778421040000,-150.68,0.00029814,14]
[421991095,1778421040000,-483.08,0.00029799,2]
[421991128,1778421041000,-150.0,0.00031233,2]
[421991123,1778421041000,-624.0,0.00031233,2]
[421991126,1778421041000,-1222.0,0.00031233,2]
[421991124,1778421041000,-3539.0,0.00031233,2]
[421991122,1778421041000,-1353.0,0.00031233,2]
[421991121,1778421041000,-169.1,0.00031006,3]
[421991116,1778421041000,-192.0,0.00030495,30]
[421991118,1778421041000,-152.0,0.00030497,30]
[421991117,1778421041000,-152.0,0.00030497,30]
[421991119,1778421041000,-483.12319758,0.00030526,2]
[421991115,1778421041000,-737.0,0.00030494,30]
[421991127,1778421041000,-150.0,0.00031233,2]
[421991120,1778421041000,-6388.43822059,0.00031004,2]
[421991130,1778421041000,-180.35,0.00031387,120]
[421991125,1778421041000,-1269.0,0.00031233,2]
[421991131,1778421041000,-2666.19451164,0.00031478,2]
[421991143,1778421041000,-502.765,0.00032264,30]
[421991142,1778421041000,-500.0,0.00032264,30]
[421991145,1778421041000,-333.26194966,0.00032323,2]
[421991140,1778421041000,-16629.12,0.00032,7]
[421991139,1778421041000,-292.84,0.00031924,2]
[421991138,1778421041000,-1875.22624361,0.00031847,2]
[421991141,1778421041000,-152.15,0.00032234,2]
[421991135,1778421041000,-152.0,0.00031497,30]
[421991137,1778421041000,-1000.0,0.000315,7]
[421991129,1778421041000,-150.0,0.00031233,2]
[421991132,1778421041000,-171.0,0.00031494,30]
[421991134,1778421041000,-192.0,0.00031495,30]
[421991133,1778421041000,-737.0,0.00031494,30]
[421991144,1778421041000,-83.06790829,0.00032323,2]
[421991136,1778421041000,-152.0,0.00031497,30]
[421991180,1778421045000,-270.23330959,0.00028233,2]
[421991178,1778421045000,-67.12669041,0.00025233,2]
[421991177,1778421045000,-349.87330959,0.00025233,2]
[421991176,1778421045000,-166.64,0.00024658,2]
[421991179,1778421045000,-166.64,0.000267,7]
[421991189,1778421095000,5039.54368612,0.00040996,120]
[421991190,1778421125000,151.0,0.00040996,120]
[421991191,1778421126000,151.0,0.00040996,120]
[421991193,1778421127000,151.0,0.00040996,120]
[421991192,1778421127000,151.0,0.00040996,120]
[421991194,1778421128000,151.0,0.00040996,120]
[421991195,1778421129000,151.0,0.00040996,120]
[421991196,1778421129000,151.0,0.00040996,120]
[421991197,1778421130000,151.0,0.00040996,120]
[421991200,1778421131000,151.0,0.00040996,120]
[421991199,1778421131000,176.7,0.00040996,120]
[421991198,1778421131000,151.0,0.00040996,120]
[421991201,1778421327000,459.59842871,0.00040996,120]
[421991202,1778421486000,171.0,0.00040989,120]
[421991207,1778421831000,662.35036979,0.00040995,120]
[421991208,1778421844000,265.96,0.00010378,2]
[421991209,1778421946000,-579.49007644,0.00011,2]
[421991210,1778421946000,-156.44,0.00012344,2]
[421991213,1778421946000,-167.74481072,0.00013794,2]
[421991212,1778421946000,-300.0,0.00013794,2]
[421991211,1778421946000,-151.0984,0.0001375,2]
[421991216,1778422003000,-27.24478388,0.00013794,2]
[421991214,1778422003000,-420.0,0.0001375,3]
[421991215,1778422003000,-132.25518928,0.00013794,2]
[421991218,1778422232000,-1278.71467835,0.00013776,2]
[421991217,1778422232000,-211.23,0.00013695,2]
[421991221,1778422232000,-300.0,0.00013795,2]
[421991220,1778422232000,-1200.0,0.00013794,2]
[421991219,1778422232000,-300.0,0.00013794,2]
[421991223,1778422232000,-48915.5526,0.00013795,2]
[421991225,1778422232000,-150.0,0.0001485,2]
[421991230,1778422232000,-2918.17862638,0.00014915,2]
[421991224,1778422232000,-300.0,0.00014473,2]
[421991227,1778422232000,-20072.105,0.00014899,2]
[421991229,1778422232000,-2500.0,0.000149,2]
[421991231,1778422232000,-299.99,0.00014915,2]
[421991226,1778422232000,-150.0,0.0001485,2]
[421991228,1778422232000,-211.23,0.00014899,2]
[421991232,1778422232000,-999.99,0.00014915,2]
[421991222,1778422232000,-291.42205796,0.00013795,2]
[421991234,1778422233000,-1577.09,0.00014925,2]
[421991237,1778422233000,-194.71051329,0.00014999,2]
[421991235,1778422233000,-150.0,0.0001499,2]
[421991233,1778422233000,-850.4,0.00014925,2]
[421991236,1778422233000,-2080.17592889,0.00014991,2]
[421991241,1778422233000,-43265.9405838,0.00015,2]
[421991239,1778422233000,-401876.12870957,0.00015,2]
[421991240,1778422233000,-195651.05864089,0.00015,2]
[421991242,1778422233000,-20671.12890787,0.00015,2]
[421991243,1778422233000,-3563.83,0.00015,2]
[421991244,1778422233000,-3550.70685027,0.00015,2]
[421991238,1778422233000,-293.51592497,0.00014999,2]
[421991275,1778422238000,-3985.08502413,0.00015,2]
[421991276,1778422238000,-2384.91899349,0.00015,2]
[421991278,1778422238000,-1003.23163617,0.00015,2]
[421991279,1778422238000,-500.0,0.00015,2]
[421991280,1778422238000,-682.45837827,0.00015,2]
[421991282,1778422238000,-3778.83298167,0.00015,2]
[421991281,1778422238000,-1051.16,0.00015,2]
[421991283,1778422238000,-25671.02966305,0.00015,2]
[421991284,1778422238000,-331.39424204,0.00015,2]
[421991277,1778422238000,-1187.75083997,0.00015,2]
[421991320,1778422240000,-410.295,0.00015,2]
[421991329,1778422246000,-506.0,0.00015,2]
[421991328,1778422246000,-37.20159453,0.00015,2]
[421991327,1778422246000,-6612.26957459,0.00015,2]
[421991332,1778422324000,500.0,0.00040996,120]
[421991333,1778422427000,161.0,0.000273,120]
[421991337,1778422631000,500.0,0.00040992,120]
[421991338,1778422694000,942.51773039,0.00040992,120]
[421991342,1778422932000,500.0,0.00040994,120]
[421991347,1778423155000,-1947.37392116,0.00013695,2]
[421991346,1778423155000,-500.0,0.0001365,2]
[421991350,1778423164000,180.11,7.906e-05,2]
[421991349,1778423164000,180.11,7.543e-05,2]